[Event "1000GM Winter GM Norm-2 2024"]
[Site "Sunnyvale/"]
[Date "2024.01.05"]
[Round "5.7"]
[White "Sathish, Pranav"]
[Black "Delgado Ramirez, Neuris"]
[Result "0-1"]
[ECO "D77"]
[WhiteElo "2357"]
[BlackElo "2517"]
[Annotator "TA"]
[PlyCount "82"]
[EventDate "2023.12.14"]
[EventType "schev"]
[EventCountry "USA"]
[SourceTitle "playchess.com"]
[Source "ChessBase"]
[SourceQuality "1"]
[TimeControl "5400+30"]

{[%evp 15,82,5,12,3,0,8,8,6,18,13,36,36,36,36,34,0,0,0,0,0,0,-25,0,0,0,0,0,-6,0,-31,-10,-25,0,-40,-37,-30,-35,-140,-121,-277,-277,-342,-325,-338,-316,-333,-324,-341,-341,-315,-262,-354,-354,-343,-313,-383,-383,-398,-392,-365,-295,-411,-369,-336,-316,-2012,-1818,-1314,-460]} 1. Nf3 {[%emt 1:31:00]} Nf6 {[%emt 0:21:22]} 2. b3 {[%emt 0:00:00]} g6 {[%emt 0:00:06]} 3. Bb2 {[%emt 0:00:00]} Bg7 {[%emt 0:00:06]} 4. g3 {[%emt 0:00:00]} b6 {[%emt 1:10:56]} 5. Bg2 {[%emt 0:00:00]} Bb7 {[%emt 0:00:00]} 6. O-O {[%emt 0:00:00]} O-O {[%emt 0:00:00]} 7. c4 {[%emt 0:00:00]} e6 {[%emt 0:00:00]} 8. d4 {[%emt 0:00:00]} d5 {[%emt 0:00:00]} 9. cxd5 {[%emt 0:00:00] D77: Fianchetto Grünfeld: 6 0-0: Replies other than 6...c6.} exd5 {[%emt 0:00:00]} 10. Nc3 {[%emt 0:00:00]} Na6 {[%emt 0:00:00][%cal Bb8a6,Ba6c5,Bc5e4][%mdl 32]} 11. Rc1 {[%emt 0:00:00] The position is equal.} Re8 {[%emt 0:03:30]} 12. e3 {[%emt 0:00:00]} c5 {[#]} 13. dxc5 $146 {[%emt 0:06:00]} ({Predecessor:} 13. Ne2 Ne4 14. Ba3 Rc8 15. Nf4 Nb4 16. Bxb4 cxb4 17. Qd3 Qd7 18. Rfe1 g5 19. Nh5 {0-1 Rezasade,A (2344)-Bacrot,E (2723) Bundesliga 1718 2017 (11.7)}) 13... Nxc5 {[%emt 0:00:00]} 14. b4 {[%emt 0:00:00]} Nce4 {[%emt 0:00:00]} 15. Qe2 {[%emt 0:00:00]} (15. Nb5 $5 {[%cal Rb5c7]}) 15... Qe7 {[%emt 0:00:00]} 16. a3 {[%emt 0:00:00]} Rac8 {[%emt 0:00:00]} 17. Nd4 h5 {[%emt 0:00:00][%cal Bh7h5,Bh5h4][%mdl 32]} 18. Bh3 {[%emt 0:00:00]} Nxc3 {[%emt 0:00:00]} (18... Rc4 $5 {[%cal Re4g5]}) 19. Bxc3 {[%emt 0:00:00]} Rc4 {[%emt 0:00:00]} 20. Bb2 {[%emt 0:00:00]} Ne4 {[%emt 0:00:00] And now ...Ng5 would win.} 21. Rfd1 {[%emt 0:00:00]} h4 {[%emt 0:00:00]} 22. Bf1 {[%emt 0:00:00]} Bh6 {[%emt 0:00:00][%cal Oe4f2] ...Nxf2! would be deadly.} 23. Re1 {[%emt 0:00:00]} a6 {[%emt 0:00:00]} 24. Nf3 {[%emt 0:00:00]} (24. Bg2 $5 {[%cal Rc1c4]}) 24... hxg3 {[%emt 0:00:00]} 25. hxg3 {[%emt 0:00:00]} Rec8 {[%emt 0:00:00][%cal Oe4g3] Strongly threatening ...Nxg3!} 26. Nd4 {[%emt 0:00:00] [#]} (26. Qd1 $15) 26... Nxg3 $1 $17 {[%emt 0:00:00][%mdl 512] Black is much more active.} 27. fxg3 {[%emt 0:00:00] Loses the game.} (27. Qf3 $17 {was called for.} Nxf1 28. Rxf1) (27. Qg4 Nxf1) 27... Rxc1 $19 {[%emt 0:00:00]} 28. Rxc1 {[%emt 0:00:00]} Qxe3+ {[%emt 0:00:00]} 29. Kh2 {[%emt 0:00:00] Threatens to win with Qxe3.} Rxc1 {[%emt 0:00:00]} 30. Bxc1 {[%emt 0:00:00]} Qxc1 {[%emt 0:00:00]} 31. Qe8+ {[%emt 0:00:00]} Bf8 {[%emt 0:00:00]} 32. Bg2 {[%emt 0:00:00]} Qc7 {[%emt 0:00:00] Repels Qb8} ({Worse is} 32... Qxa3 33. Ne6 fxe6 34. Qxe6+ Kh8 35. Qh3+ Kg8 36. Qe6+ Kg7 37. Qd7+ Kh8 38. Qh3+ Kg8 39. Qe6+ $17) 33. a4 {[%emt 0:00:00]} Qc8 {[%emt 0:00:00]} 34. Qxc8 {[%emt 0:00:00]} Bxc8 {[%emt 0:00:00]} 35. Bxd5 {[%emt 0:00:00]} Bxb4 {[%emt 0:00:00][%mdl 4096] Endgame KBB-KBN} 36. Kg2 {[%emt 0:00:00]} Kg7 {[%emt 0:00:00]} 37. Kf3 {[%emt 0:00:00]} Bd7 {[%emt 0:00:00]} 38. Bc4 {[%emt 0:00:00]} Bxa4 {[%emt 0:00:00]} 39. Bxa6 {[%emt 0:00:00]} Bc5 {[%emt 0:00:00][%cal Og7f6]} 40. Ke4 $2 {[%emt 0:00:00]} (40. Bb5 Bxb5 41. Nxb5) 40... Bxd4 {[%emt 0:00:00]} 41. Kxd4 {[%emt 0:00:00]} Kf6 {[%emt 0:00:00] Weighted Error Value: White=0.52/Black=0.09 (flawless)} 0-1

[Event "1000GM Winter GM Norm-2 2024"]
[Site "Sunnyvale/"]
[Date "2024.01.05"]
[Round "5.8"]
[White "Xu, Yi"]
[Black "Liu, Eric"]
[Result "1-0"]
[ECO "B52"]
[WhiteElo "2511"]
[BlackElo "2332"]
[Annotator "TA"]
[PlyCount "69"]
[EventDate "2023.12.14"]
[EventType "schev"]
[EventCountry "USA"]
[SourceTitle "playchess.com"]
[Source "ChessBase"]
[SourceQuality "1"]
[TimeControl "5400+30"]

{[%evp 9,69,13,0,0,0,0,0,0,17,25,7,6,71,72,127,119,128,120,134,75,64,65,235,168,175,180,267,247,412,279,435,416,689,572,552,474,772,715,1271,417,654,432,421,420,411,365,561,524,579,365,463,467,450,548,564,560,538,536,650,629,590,482]} 1. e4 {[%emt 0:00:45]} c5 {[%emt 0:00:08]} 2. Nf3 {[%emt 0:00:16]} d6 {[%emt 0:00:05]} 3. Bb5+ {[%emt 0:00:11]} Bd7 {[%emt 0:00:18]} 4. c4 {[%emt 0:00:53]} Nf6 {[%emt 0:01:15]} 5. Nc3 {[%emt 0:00:08]} a6 {[%emt 0:12:29]} 6. Bxd7+ {[%emt 0:00:09] B52: Sicilian: Moscow Variation with 3...Bd7.} Nbxd7 {[%emt 0:00:12]} 7. O-O {[%emt 0:01:46]} e6 {[%emt 0:09:28]} 8. d3 {[%emt 0:12:53] The position is equal.} Ne5 {[%emt 0:04:34]} 9. Nxe5 {[%emt 0:02:40]} dxe5 {[%emt 0:00:02]} 10. f4 {[%emt 0:02:14]} exf4 {[%emt 0:24:37]} (10... h5 $11) 11. Bxf4 $16 {[%emt 0:01:48] [#]} Qd4+ $146 {[%emt 0:02:00]} (11... h5 $142) ({Predecessor:} 11... Qd7 12. e5 Ng8 13. Ne4 O-O-O 14. Bg5 Qd4+ 15. Kh1 Rd7 16. Qa4 Nh6 17. Bxh6 gxh6 18. Rxf7 {½-½ Xiong,J (2672)-Nakamura,H (2749) PRO League Stage rapid 2019 (4)}) 12. Kh1 {[%emt 0:03:01]} O-O-O {[%emt 0:00:23][%cal Of8e7]} 13. e5 {[%emt 0:07:58]} Ng8 {[%emt 0:09:26]} 14. Ne4 {[%emt 0:03:15]} (14. Qe1 $142) 14... f5 {[%emt 0:12:25]} 15. exf6 $1 {[%emt 0:13:24]} gxf6 {[%emt 0:00:05] Loses the game.} ({Black should try} 15... Nxf6 $14 16. Ng5 e5) 16. Qg4 {[%emt 0:07:40]} Qd7 {[%emt 0:03:27]} 17. Qh5 {[%emt 0:07:25]} b6 {[%emt 0:07:11]} (17... Qe8 $142 18. Qh3 h5) 18. Rae1 {[%emt 0:09:01][%cal Ba1e1,Be1e3,Be3h3][%mdl 32]} Kb7 $2 {[%emt 0:01:26] [#]} (18... Be7 19. Nc3 Kb7) 19. a4 $1 {[%emt 0:03:51][%cal Oa4a5][%mdl 512] And now a5! would win.} a5 {[%emt 0:02:38]} (19... h6 $142 20. a5 f5) (19... e5 20. Bg3) 20. Ng5 $18 {[%emt 0:05:15][%mdl 64] Discovered Attack} Ka7 {[%emt 0:05:32]} (20... fxg5 $142 21. Be5 Be7 22. Bxh8 e5 23. Qxh7 Qxd3 24. Qxd3 Rxd3) 21. Nxe6 {[%emt 0:01:45]} Rc8 {[%emt 0:00:05]} 22. Re3 {[%emt 0:03:06]} Ka6 {[%emt 0:02:34] Black is weak on the light squares} (22... Ne7 $142 23. Qf7 Qb7) 23. Rfe1 {[%emt 0:00:57]} Qc6 {[%emt 0:00:43]} 24. Qf7 {[%emt 0:00:53]} (24. Nxf8 $142 f5 25. Re6) 24... Bh6 {[%emt 0:00:11]} (24... Bd6 $142 25. Bxd6 Qxd6) 25. Rh3 {[%emt 0:03:17] [#] aiming for Nc7+.} Bxf4 {[%emt 0:00:14]} 26. Nxf4 {[%emt 0:00:05]} h5 {[%emt 0:01:08]} 27. Qg7 {[%emt 0:03:42]} (27. Nxh5 Nh6 28. Qd5 (28. Qxf6 Ng4 $11) 28... Ng4 $14) (27. Rxh5 Nh6 28. Qd5 Rhe8 $18) 27... Nh6 {[%emt 0:00:11]} (27... Re8 {might work better.} 28. Rhe3 Nh6) 28. Re7 {[%emt 0:00:20][%csl Gg7][%cal Re7a7]} (28. Nxh5 $2 Rcg8 $19) 28... Ra8 {[%emt 0:00:30] Wards off Ra7+. ...Rhe8 is the strong threat.} 29. Re6 {[%emt 0:02:06] Inhibits Rhe8.} (29. Nxh5 $2 Rhg8 30. Rhe3 (30. Qxh6 $2 Qxg2#) 30... Rxg7 31. Nxg7 Qxa4 $19) 29... Qb7 {[%emt 0:00:52]} 30. Qxb7+ {[%emt 0:00:25] White is clearly winning.} (30. Qxf6 Raf8 31. Qh4 Rh7 $11) (30. Nxh5 Nf7 31. Rf3 (31. Rxf6 Rag8 $11) 31... Ng5 32. Qxb7+ (32. Rexf6 $2 Nxf3 33. Rxf3 Rxh5 $19) 32... Kxb7 33. Re7+ (33. Rexf6 $2 Nxf3 34. Rxf3 Rxh5 $19) 33... Ka6 34. Rxf6 Rxh5 $16) 30... Kxb7 {[%emt 0:00:03]} 31. Rxh5 {[%emt 0:00:31]} ({Weaker is} 31. Rxf6 Rae8 32. Kg1 (32. Nxh5 $2 {gets mated.} Re1+) 32... Ng4 33. Rf7+ Kc8 $18) 31... Ng4 {[%emt 0:00:29]} 32. Rxh8 {[%emt 0:00:34]} Rxh8 {[%emt 0:00:03]} 33. h3 {[%emt 0:00:31]} Nf2+ {[%emt 0:00:50]} 34. Kg1 {[%emt 0:00:19]} Nd1 {[%emt 0:00:08]} 35. b3 {[%emt 0:00:47] Weighted Error Value: White=0.61/Black=0.73} 1-0

[Event "1000GM Winter GM Norm-2 2024"]
[Site "Sunnyvale/"]
[Date "2024.01.05"]
[Round "5.9"]
[White "Nathan, Nitish"]
[Black "Lou, Yiping"]
[Result "0-1"]
[ECO "A48"]
[WhiteElo "2190"]
[BlackElo "2447"]
[Annotator "RC"]
[PlyCount "116"]
[EventDate "2023.12.14"]
[EventType "schev"]
[EventCountry "USA"]
[SourceTitle "playchess.com"]
[Source "ChessBase"]
[SourceQuality "1"]
[TimeControl "5400+30"]

1. d4 {[%emt 0:00:02]} Nf6 {[%emt 0:01:15]} 2. Bf4 {[%emt 0:00:29]} d6 {[%emt 0:00:37]} 3. e3 {[%emt 0:00:25]} g6 {[%emt 0:00:15]} 4. Nf3 {[%emt 0:00:14]} Bg7 {[%emt 0:00:07]} 5. h3 {[%emt 0:00:20]} c5 {[%emt 0:00:17]} 6. c3 {[%emt 0:01:43]} Qb6 {[%emt 0:01:22]} 7. Qc2 {[%emt 0:03:54]} Bf5 {[%emt 0:04:33]} 8. Qb3 {[%emt 0:00:52]} Be6 {[%emt 0:00:50]} 9. Qc2 {[%emt 0:03:43]} O-O {[%emt 0:02:48]} 10. Nbd2 {[%emt 0:04:52]} cxd4 {[%emt 0:01:52]} 11. exd4 {[%emt 0:02:42]} Rc8 {[%emt 0:00:14]} 12. a4 {[%emt 0:13:02]} Nc6 {[%emt 0:03:20]} 13. Qb1 {[%emt 0:09:35]} Nd5 {[%emt 0:06:24]} 14. Nc4 {[%emt 0:04:36]} Qd8 {[%emt 0:02:12]} 15. Bd2 {[%emt 0:04:01]} Nb6 {[%emt 0:03:35]} 16. Nxb6 {[%emt 0:48:00]} Qxb6 {[%emt 0:00:13]} 17. Be3 {[%emt 0:00:00]} Bd5 {[%emt 0:06:41]} 18. Be2 {[%emt 0:00:00]} Na5 {[%emt 0:01:24]} 19. O-O {[%emt 0:00:00]} Nc4 {[%emt 0:01:57]} 20. Bxc4 {[%emt 0:00:00]} Rxc4 {[%emt 0:01:19]} 21. Nd2 {[%emt 0:00:00]} Rc7 {[%emt 0:00:53]} 22. Re1 {[%emt 0:00:00]} Rac8 {[%emt 0:04:52]} 23. f3 {[%emt 0:00:00]} h6 {[%emt 0:04:25]} 24. Bf2 {[%emt 0:00:00]} Qa6 {[%emt 0:02:10]} 25. Qd1 {[%emt 0:00:00]} b6 {[%emt 0:03:32]} 26. Qe2 {[%emt 0:00:00]} Qxe2 {[%emt 0:02:34]} 27. Rxe2 {[%emt 0:00:00]} Kf8 {[%emt 0:00:14]} 28. Nb1 {[%emt 0:00:00]} a6 {[%emt 0:03:29]} 29. Na3 {[%emt 0:00:00]} Rb7 {[%emt 0:00:42]} 30. Nb1 {[%emt 0:00:00]} f5 {[%emt 0:01:14]} 31. Nd2 {[%emt 0:00:00]} Bf6 {[%emt 0:00:56]} 32. Ree1 {[%emt 0:00:00]} Bf7 {[%emt 0:01:21]} 33. Be3 {[%emt 0:00:00]} Kg7 {[%emt 0:00:06]} 34. Rac1 {[%emt 0:00:00]} b5 {[%emt 0:00:22]} 35. axb5 {[%emt 0:00:44]} Rxb5 {[%emt 0:03:14]} 36. b4 {[%emt 0:00:52]} a5 {[%emt 0:05:04]} 37. bxa5 {[%emt 0:00:59]} Rxa5 {[%emt 0:00:04]} 38. Rc2 {[%emt 0:02:51]} Ra3 {[%emt 0:03:41]} 39. Rec1 {[%emt 0:00:30]} g5 {[%emt 0:00:04]} 40. Bf2 {[%emt 0:00:44]} d5 {[%emt 0:04:00]} 41. c4 {[%emt 0:02:20]} Rd3 {[%emt 0:02:49]} 42. Kf1 {[%emt 0:01:07]} dxc4 {[%emt 0:08:07]} 43. Nxc4 {[%emt 0:00:07]} Rb3 {[%emt 0:00:10]} 44. Ne5 {[%emt 0:01:12]} Rxc2 {[%emt 0:00:36]} 45. Rxc2 {[%emt 0:00:02]} Rb1+ {[%emt 0:00:06]} 46. Ke2 {[%emt 0:01:12]} Be8 {[%emt 0:00:04]} 47. Be1 {[%emt 0:00:17]} Bb5+ {[%emt 0:01:18]} 48. Kf2 {[%emt 0:00:05]} f4 {[%emt 0:00:12]} 49. Nc4 {[%emt 0:02:37]} Bxd4+ {[%emt 0:00:10]} 50. Ke2 {[%emt 0:00:07]} Rb2 {[%emt 0:00:24]} 51. Rxb2 {[%emt 0:01:01]} Bxc4+ {[%emt 0:00:04]} 52. Kd1 {[%emt 0:00:17]} Bxb2 {[%emt 0:00:05]} 53. g3 {[%emt 0:00:11]} Bd4 {[%emt 0:00:22]} 54. gxf4 {[%emt 0:00:10]} gxf4 {[%emt 0:00:03]} 55. Bh4 {[%emt 0:00:08]} e5 {[%emt 0:00:06]} 56. Ke1 {[%emt 0:00:04]} Be6 {[%emt 0:00:04]} 57. Bf2 {[%emt 0:00:13]} Bxf2+ {[%emt 0:00:05]} 58. Kxf2 {[%emt 0:00:04]} Bxh3 {[%emt 0:00:04]} 0-1

[Event "1000GM Winter GM Norm-2 2024"]
[Site "Sunnyvale/"]
[Date "2024.01.05"]
[Round "6.1"]
[White "Nagy, Gabor"]
[Black "Rajaram, Rohan"]
[Result "1-0"]
[ECO "A11"]
[WhiteElo "2450"]
[BlackElo "2151"]
[Annotator "RC"]
[PlyCount "111"]
[EventDate "2023.12.14"]
[EventType "schev"]
[EventCountry "USA"]
[SourceTitle "playchess.com"]
[Source "ChessBase"]
[SourceQuality "1"]
[TimeControl "5400+30"]

1. Nf3 {[%emt 0:01:08]} d5 {[%emt 0:00:12]} 2. g3 {[%emt 0:00:35]} Nf6 {[%emt 0:00:28]} 3. Bg2 {[%emt 0:00:16]} c6 {[%emt 0:00:20]} 4. c4 {[%emt 0:00:56]} Bf5 {[%emt 0:01:17]} 5. O-O {[%emt 0:01:05]} e6 {[%emt 0:00:37]} 6. cxd5 {[%emt 0:00:45]} exd5 {[%emt 0:01:32]} 7. d3 {[%emt 0:00:38]} h6 {[%emt 1:29:34]} 8. Qb3 {[%emt 0:04:02]} Qb6 {[%emt 0:00:00]} 9. Qc2 {[%emt 0:00:39]} Be7 {[%emt 0:00:00]} 10. Nc3 {[%emt 0:01:04]} Nbd7 {[%emt 0:00:00]} 11. e4 {[%emt 0:01:22]} dxe4 {[%emt 0:00:00]} 12. dxe4 {[%emt 0:00:27]} Bh7 {[%emt 0:00:00]} 13. Be3 {[%emt 0:01:18]} c5 {[%emt 0:00:00]} 14. Rfd1 {[%emt 0:06:25]} O-O {[%emt 0:00:00]} 15. Bh3 {[%emt 0:11:45]} Rad8 {[%emt 0:00:00]} 16. Qe2 {[%emt 0:00:52]} Qc6 {[%emt 0:00:00]} 17. e5 {[%emt 0:00:47]} Ne4 {[%emt 0:00:00]} 18. Nd5 {[%emt 0:00:10]} Rfe8 {[%emt 0:00:00]} 19. Nxe7+ {[%emt 0:00:48]} Rxe7 {[%emt 0:00:00]} 20. Rac1 {[%emt 0:00:49]} b6 {[%emt 0:00:00]} 21. b4 {[%emt 0:11:13]} Rb8 {[%emt 0:00:00]} 22. bxc5 {[%emt 0:05:07]} Ndxc5 {[%emt 0:00:00]} 23. Nd4 {[%emt 0:01:51]} Qe8 {[%emt 0:00:00]} 24. f4 {[%emt 0:02:13]} f6 {[%emt 0:00:00]} 25. e6 {[%emt 0:03:24]} f5 {[%emt 0:00:00]} 26. Qc4 {[%emt 0:01:50]} b5 {[%emt 0:00:00]} 27. Qb4 {[%emt 0:02:43]} Rc8 {[%emt 0:00:00]} 28. Nxf5 {[%emt 0:02:31]} Rxe6 {[%emt 0:00:00]} 29. Nd4 {[%emt 0:02:55]} Rg6 {[%emt 0:11:00]} 30. Nf5 {[%emt 0:04:57]} Rgc6 {[%emt 0:00:00]} 31. Re1 {[%emt 0:03:07]} Qe6 {[%emt 0:00:00]} 32. Nxh6+ {[%emt 0:02:41]} Qxh6 {[%emt 0:00:00]} 33. Bxc8 {[%emt 0:00:06]} Rxc8 {[%emt 0:00:00]} 34. Bxc5 {[%emt 0:00:40]} Qh5 {[%emt 0:00:00]} 35. Bxa7 {[%emt 0:01:59]} Ra8 {[%emt 0:00:00]} 36. Rxe4 {[%emt 0:02:27]} Bxe4 {[%emt 0:00:00]} 37. Qxe4 {[%emt 0:00:06]} Re8 {[%emt 0:00:00]} 38. Qd3 {[%emt 0:01:14]} Qf7 {[%emt 0:00:00]} 39. Bf2 {[%emt 0:00:28]} Qxa2 {[%emt 0:00:00]} 40. Qxb5 {[%emt 0:00:24]} Rd8 {[%emt 0:00:00]} 41. Qc4+ {[%emt 0:00:25]} Qxc4 {[%emt 0:00:00]} 42. Rxc4 {[%emt 0:00:01]} Kf7 {[%emt 0:00:00]} 43. Kg2 {[%emt 0:00:06]} Rd6 {[%emt 0:00:00]} 44. g4 {[%emt 0:00:08]} Kg6 {[%emt 0:00:00]} 45. h4 {[%emt 0:00:08]} Kh7 {[%emt 0:00:00]} 46. h5 {[%emt 0:00:11]} Rd7 {[%emt 0:00:00]} 47. Rc6 {[%emt 0:00:23]} Rf7 {[%emt 0:00:00]} 48. Be3 {[%emt 0:00:09]} Re7 {[%emt 0:00:00]} 49. Kf3 {[%emt 0:00:06]} Rf7 {[%emt 0:00:00]} 50. g5 {[%emt 0:00:14]} Rd7 {[%emt 0:00:00]} 51. f5 {[%emt 0:00:30]} Rd8 {[%emt 0:00:00]} 52. g6+ {[%emt 0:00:32]} Kg8 {[%emt 0:00:00]} 53. Rc7 {[%emt 0:01:01]} Rf8 {[%emt 0:00:00]} 54. Bd4 {[%emt 0:00:42]} Rxf5+ {[%emt 0:00:00]} 55. Ke4 {[%emt 0:00:21]} Rf8 {[%emt 0:00:00]} 56. Rxg7+ {[%emt 0:00:08]} 1-0

[Event "1000GM Winter GM Norm-2 2024"]
[Site "Sunnyvale/"]
[Date "2024.01.06"]
[Round "6.3"]
[White "Wang, Isaac"]
[Black "Figueredo Losada, Leonel"]
[Result "1/2-1/2"]
[ECO "E11"]
[WhiteElo "2316"]
[BlackElo "2381"]
[Annotator "RC"]
[PlyCount "164"]
[EventDate "2023.12.14"]
[EventType "schev"]
[EventCountry "USA"]
[SourceTitle "playchess.com"]
[Source "ChessBase"]
[SourceQuality "1"]
[TimeControl "5400+30"]

1. d4 {[%emt 0:02:13]} Nf6 {[%emt 0:01:30]} 2. c4 {[%emt 0:00:08]} e6 {[%emt 0:00:03]} 3. Nf3 {[%emt 0:00:09]} Bb4+ {[%emt 0:00:04]} 4. Bd2 {[%emt 0:01:56]} Qe7 {[%emt 0:00:06]} 5. g3 {[%emt 0:00:06]} Bxd2+ {[%emt 0:00:13]} 6. Qxd2 {[%emt 0:00:36]} Nc6 {[%emt 0:00:07]} 7. Nc3 {[%emt 0:01:08]} d5 {[%emt 0:00:05]} 8. cxd5 {[%emt 0:01:49]} exd5 {[%emt 0:00:04]} 9. Bg2 {[%emt 0:00:08]} O-O {[%emt 0:00:04]} 10. O-O {[%emt 0:00:07]} Re8 {[%emt 0:00:01]} 11. Rac1 {[%emt 0:05:01]} Bf5 {[%emt 0:00:43]} 12. Rfe1 {[%emt 0:01:45]} Rad8 {[%emt 0:00:22]} 13. Qf4 {[%emt 0:04:49]} Be4 {[%emt 0:21:45]} 14. Red1 {[%emt 0:10:13]} Nh5 {[%emt 0:12:49]} 15. Qh4 {[%emt 0:07:11]} Bxf3 {[%emt 0:09:35]} 16. Qxe7 {[%emt 0:00:28]} Rxe7 {[%emt 0:03:03]} 17. Bxf3 {[%emt 0:00:19]} Nf6 {[%emt 0:00:03]} 18. e3 {[%emt 0:02:16]} a6 {[%emt 0:00:51]} 19. h4 {[%emt 0:02:21]} h5 {[%emt 0:07:02]} 20. Kg2 {[%emt 0:03:04]} Na7 {[%emt 0:00:07]} 21. Ne2 {[%emt 0:02:21]} c6 {[%emt 0:00:20]} 22. Nf4 {[%emt 0:01:02]} g6 {[%emt 0:00:02]} 23. Rc5 {[%emt 0:06:46]} Ne8 {[%emt 0:00:54]} 24. Rdc1 {[%emt 0:01:04]} Kg7 {[%emt 0:02:43]} 25. b3 {[%emt 0:02:59]} Nd6 {[%emt 0:01:51]} 26. R5c2 {[%emt 0:01:36]} Ne4 {[%emt 0:03:11]} 27. Kf1 {[%emt 0:02:43]} f6 {[%emt 0:03:48]} 28. Kg2 {[%emt 0:04:12]} Nc8 {[%emt 0:03:34]} 29. Nd3 {[%emt 0:01:30]} Ncd6 {[%emt 0:00:56]} 30. Nc5 {[%emt 0:03:21]} Nxc5 {[%emt 0:00:55]} 31. Rxc5 {[%emt 0:00:33]} Rh8 {[%emt 0:00:05]} 32. a4 {[%emt 0:01:00]} g5 {[%emt 0:00:06]} 33. Rh1 {[%emt 0:00:52]} Kg6 {[%emt 0:05:37]} 34. Be2 {[%emt 0:02:26]} gxh4 {[%emt 0:01:41]} 35. Bd3+ {[%emt 0:02:33]} f5 {[%emt 0:00:04]} 36. Rxh4 {[%emt 0:00:21]} Ne4 {[%emt 0:06:29]} 37. Rc1 {[%emt 0:01:53]} Nf6 {[%emt 0:04:12]} 38. Rch1 {[%emt 0:01:59]} Rhh7 {[%emt 0:00:05]} 39. Rf4 {[%emt 0:25:02]} Ne4 {[%emt 0:00:04]} 40. f3 {[%emt 0:00:00]} Nd6 {[%emt 0:00:01]} 41. Kf2 {[%emt 0:00:00]} Kg5 {[%emt 0:02:23]} 42. Rfh4 {[%emt 0:00:00]} Rh8 {[%emt 0:05:40]} 43. g4 {[%emt 0:00:00]} fxg4 {[%emt 0:00:27]} 44. f4+ {[%emt 0:00:00]} Kf6 {[%emt 0:00:10]} 45. Rxh5 {[%emt 0:00:00]} Rxh5 {[%emt 0:01:34]} 46. Rxh5 {[%emt 0:00:00]} Ne4+ {[%emt 0:01:10]} 47. Bxe4 {[%emt 0:00:00]} Rxe4 {[%emt 0:03:11]} 48. Rg5 {[%emt 0:00:16]} Re7 {[%emt 0:00:16]} 49. Rxg4 {[%emt 0:00:38]} Rh7 {[%emt 0:00:07]} 50. Ke2 {[%emt 0:02:26]} Rh1 {[%emt 0:00:59]} 51. Kd2 {[%emt 0:00:33]} Rb1 {[%emt 0:00:08]} 52. Kc3 {[%emt 0:00:12]} Re1 {[%emt 0:00:10]} 53. Kd2 {[%emt 0:00:57]} Rb1 {[%emt 0:00:04]} 54. Kc3 {[%emt 0:00:02]} Re1 {[%emt 0:00:04]} 55. Rg3 {[%emt 0:00:54]} a5 {[%emt 0:00:06]} 56. Rh3 {[%emt 0:00:38]} Ke6 {[%emt 0:02:18]} 57. Rh6+ {[%emt 0:00:38]} Kf5 {[%emt 0:00:47]} 58. Rh5+ {[%emt 0:00:21]} Ke6 {[%emt 0:00:17]} 59. Re5+ {[%emt 0:00:16]} Kd6 {[%emt 0:00:16]} 60. f5 {[%emt 0:00:23]} b6 {[%emt 0:03:06]} 61. Kd2 {[%emt 0:00:33]} Rh1 {[%emt 0:00:10]} 62. Ke2 {[%emt 0:00:27]} b5 {[%emt 0:00:20]} 63. Re6+ {[%emt 0:01:21]} Kc7 {[%emt 0:02:14]} 64. Kf3 {[%emt 0:00:37]} bxa4 {[%emt 0:00:32]} 65. bxa4 {[%emt 0:00:04]} Ra1 {[%emt 0:00:07]} 66. f6 {[%emt 0:00:40]} Kd7 {[%emt 0:00:04]} 67. Re7+ {[%emt 0:00:05]} Kd6 {[%emt 0:00:01]} 68. Kf4 {[%emt 0:00:56]} Rxa4 {[%emt 0:00:09]} 69. Kf5 {[%emt 0:00:11]} Ra1 {[%emt 0:00:03]} 70. Ra7 {[%emt 0:00:42]} Rf1+ {[%emt 0:00:18]} 71. Kg6 {[%emt 0:00:04]} Ke6 {[%emt 0:00:02]} 72. f7 {[%emt 0:00:23]} a4 {[%emt 0:00:44]} 73. Kg7 {[%emt 0:00:16]} Rg1+ {[%emt 0:00:34]} 74. Kf8 {[%emt 0:00:08]} Rb1 {[%emt 0:01:36]} 75. Kg7 {[%emt 0:01:53]} Rg1+ {[%emt 0:00:08]} 76. Kf8 {[%emt 0:00:07]} Rb1 {[%emt 0:00:04]} 77. Kg8 {[%emt 0:01:32]} Rg1+ {[%emt 0:00:04]} 78. Kf8 {[%emt 0:00:28]} Rb1 {[%emt 0:00:14]} 79. Re7+ {[%emt 0:00:33]} Kf6 {[%emt 0:00:33]} 80. Kg8 {[%emt 0:01:16]} Rg1+ {[%emt 0:00:25]} 81. Kf8 {[%emt 0:00:00]} Rb1 {[%emt 0:00:43]} 82. Kg8 {[%emt 0:00:00]} Rg1+ {[%emt 0:00:14]} 1/2-1/2